bitfinex/quotes_ETHUSD_20251220
["timestamp","ask_amount","ask_price","bid_price","bid_amount"]
[1766211096065,1.1409,2986.2,2985.7,0.001]
[1766211096224,1.7831,2986.1,2986.0,0.001]
[1766211096952,2.00541,2986.3,2986.0,0.001]
[1766211097116,0.44,2986.5,2986.0,1.2272]
[1766211097551,2.2231,2986.5,2986.0,0.9085]
[1766211097848,1.7831,2986.4,2986.0,0.001]
[1766211103156,1.1409,2986.4,2986.0,0.001]
[1766211103470,1.7831,2986.3,2986.0,0.001]
[1766211120303,1.00647667,2986.7,2986.1,7.18908501]
[1766211120496,0.002,2986.8,2986.3,0.8958]
[1766211120806,0.002,2986.8,2986.4,0.3153]
[1766211121680,0.002,2986.8,2986.4,1.2103]
[1766211121883,0.002,2987.3,2986.7,7.18908501]
[1766211122102,1.7831,2987.2,2986.6,1.2102]
[1766211122611,1.7831,2987.2,2986.6,2.21637624]
[1766211122780,1.7831,2987.2,2986.7,0.8945]
[1766211123105,0.002,2987.3,2986.7,1.2097]
[1766211123316,0.6442,2987.3,2986.7,1.2097]
[1766211123688,0.002,2987.3,2987.0,0.8941]
[1766211124005,0.442,2987.6,2987.2,1.2072]
[1766211124178,0.002,2987.6,2987.2,1.2072]
[1766211124919,0.002,2987.6,2987.3,0.8933]
[1766211125205,0.002,2987.7,2987.3,7.18908501]
[1766211125382,0.002,2987.8,2987.4,1.2023]
[1766211125704,0.002,2987.8,2987.4,0.311]
[1766211126004,0.002,2987.8,2987.5,1.2018]
[1766211131012,1.8473,2987.7,2987.2,0.57413703]
[1766211132107,0.6877,2987.6,2987.2,0.57413703]
[1766211136805,1.1596,2987.7,2987.2,0.57413703]
[1766211137009,1.1596,2987.7,2987.2,1.72163703]
[1766211138993,1.1596,2987.7,2987.2,1.28163703]
[1766211139531,0.002,2987.8,2987.3,1.1355]
[1766211139823,0.002,2987.8,2987.5,0.2849]
[1766211140116,0.002,2987.8,2987.5,1.1325]
[1766211140282,0.002,2987.8,2987.2,11.80150446]
[1766211140485,0.002,2988.0,2987.6,0.2831]
[1766211140725,0.002,2988.0,2987.7,1.1256]
[1766211141886,0.002,2988.3,2987.7,0.8395]
[1766211142086,0.002,2988.3,2987.9,1.117]
[1766211142710,0.002,2988.3,2987.9,0.8395]
[1766211143114,0.6897,2988.3,2987.9,0.8395]
[1766211143515,0.6897,2988.3,2987.7,1.28331866]
[1766211143718,0.6897,2988.3,2987.7,2.11691866]
[1766211144015,0.6897,2988.3,2987.7,1.28331866]
[1766211144218,0.6897,2988.3,2987.8,0.2739]
[1766211144399,0.002,2988.3,2987.7,4.35285767]
[1766211144718,0.002,2988.3,2987.9,0.8307]
[1766211146509,0.002,2988.3,2987.9,1.0995]
[1766211151936,1.7619,2988.3,2987.7,1.00581866]
[1766211152429,1.7619,2988.3,2987.7,2.07351866]
[1766211152939,1.7619,2988.3,2987.7,1.0677]
[1766211153141,1.7619,2988.3,2987.7,2.07351866]
[1766211154459,1.7619,2988.3,2987.7,2.51351866]
[1766211154625,0.002,2988.3,2987.7,1.44581866]
[1766211154939,0.6444,2988.1,2987.9,0.001]
[1766211155109,1.6887,2988.1,2987.9,0.001]
[1766211155310,0.6444,2988.1,2987.5,0.001]
[1766211155549,1.0443,2987.7,2987.5,0.001]
[1766211159141,0.6444,2987.8,2987.5,0.001]
[1766211161455,1.0443,2987.9,2987.5,0.001]
[1766211161624,0.16887,2988.0,2987.5,0.001]
[1766211161625,0.16887,2988.0,2987.6,1.0266]
[1766211166255,0.16887,2988.0,2987.6,0.7815]
[1766211166428,1.85757,2988.0,2987.5,0.001]
[1766211170151,1.6887,2987.9,2987.5,0.001]
[1766211176353,0.17087,2988.0,2987.5,0.001]
[1766211176555,0.17087,2988.0,2987.5,0.9784]
[1766211177257,0.17087,2988.0,2987.5,0.001]
[1766211177426,1.85957,2988.0,2987.5,0.001]
[1766211180530,1.21517,2988.0,2987.5,0.001]
[1766211180829,0.6444,2987.9,2987.5,0.001]
[1766211187064,1.973857,2987.9,2987.5,0.001]
[1766211189159,0.231957,2987.9,2987.5,0.001]
[1766211189365,1.7305,2987.8,2987.5,0.001]
[1766211189547,1.0975,2987.8,2987.5,0.001]
[1766211189748,0.633,2987.7,2987.5,0.001]
[1766211190056,1.7305,2987.7,2987.5,0.001]
[1766211193873,0.231957,2987.9,2987.5,0.001]
[1766211194375,1.962457,2987.9,2987.5,0.001]
[1766211196345,0.633,2987.8,2987.5,0.001]
[1766211196666,1.7305,2987.8,2987.5,0.001]
[1766211220996,0.231957,2987.9,2987.5,0.001]
[1766211221302,1.911557,2987.9,2987.5,0.001]
[1766211221474,0.231957,2987.9,2987.5,0.001]
[1766211221676,1.6796,2987.8,2987.5,0.001]
[1766211241115,0.231957,2987.9,2987.5,0.001]
[1766211241316,0.231957,2987.9,2987.1,1.0997]
[1766211241521,1.6796,2987.8,2987.1,1.0997]
[1766211241814,1.6796,2987.8,2987.5,0.001]
[1766211242013,1.6796,2987.6,2987.5,0.001]
[1766211244722,0.6134,2987.6,2987.5,0.001]
[1766211245517,1.3284427,2987.8,2987.5,0.001]
[1766211245818,1.9571427,2987.8,2987.5,0.001]
[1766211249417,1.7049,2987.7,2987.5,0.001]
[1766211251020,1.7049,2987.7,2987.1,1.2687]
[1766211251217,0.2522427,2987.8,2987.1,0.001]
[1766211251412,0.6287,2987.4,2987.1,0.001]
[1766211251994,1.0762,2987.5,2987.1,0.001]
[1766211253620,0.002,2987.9,2987.1,0.001]
[1766211253809,0.002,2987.9,2987.4,0.6406]
[1766211254014,1.7069,2987.9,2987.4,0.6406]
[1766211254212,1.7049,2987.8,2987.3,0.1557]
[1766211255224,1.7069,2987.8,2987.3,0.1557]
[1766211255426,1.92199,2987.8,2987.3,0.1557]
[1766211256317,1.92199,2987.8,2987.3,0.7928]
[1766211259312,1.7069,2987.8,2987.3,0.7928]
[1766211259826,0.002,2987.8,2987.3,0.7928]
[1766211260204,0.002,2987.8,2987.4,0.1442]
[1766211260405,0.002,2987.8,2987.4,0.7744]
[1766211261733,0.002,2987.8,2987.4,0.6302]
[1766211269150,0.002,2987.8,2987.4,0.7595]
[1766211271446,0.002,2987.8,2987.4,0.7605]
[1766211272349,0.002,2987.9,2987.6,0.7332]
[1766211280649,0.002,2988.0,2987.6,0.6101]
[1766211280853,0.002,2988.0,2987.7,0.7061]
[1766211281856,0.002,2988.0,2987.7,0.7048]
[1766211286155,0.002,2988.0,2987.7,0.5965]
[1766211286532,0.002,2988.0,2987.5,0.6937]
[1766211288156,0.002,2988.0,2987.6,0.1002]
[1766211288361,0.002,2988.0,2987.6,0.688]
[1766211291063,0.002,2988.0,2987.7,0.6824]
[1766211291230,0.002,2988.0,2987.5,0.001]
[1766211291435,0.5617,2988.0,2987.5,0.001]
[1766211291664,1.5502,2988.0,2987.5,0.001]
[1766211292256,1.5502,2988.0,2987.6,0.21219]
[1766211293157,1.5502,2988.0,2987.6,1.2180525]
[1766211301170,1.5482,2987.9,2987.5,0.001]
[1766211301468,1.5482,2987.7,2987.4,0.001]
[1766211301675,0.9885,2987.7,2987.1,0.001]
[1766211301837,0.5597,2987.4,2987.1,0.001]
[1766211302041,1.5482,2987.4,2987.1,0.001]
[1766211305144,0.9885,2987.4,2987.1,0.001]
[1766211307775,1.59344465,2987.6,2987.1,0.001]
[1766211308072,2.56484465,2987.6,2987.1,0.001]
[1766211310248,1.00604465,2987.6,2987.1,0.5437]
[1766211310455,1.00604465,2987.6,2987.1,1.1097]
[1766211310978,0.9714,2987.6,2987.1,1.1097]
[1766211311850,0.9714,2987.6,2987.2,0.5427]
[1766211313579,0.9734,2987.6,2987.2,0.5427]
[1766211314461,1.5414,2987.6,2987.2,0.5427]
[1766211314662,0.9734,2987.6,2987.2,0.5427]
[1766211315066,1.5414,2987.6,2987.2,0.5427]
[1766211315266,0.9734,2987.6,2987.2,0.5427]
[1766211319593,0.002,2987.6,2987.2,0.5427]
[1766211327898,1.00804465,2987.6,2987.2,0.5427]
[1766211331773,0.002,2987.6,2987.2,0.5427]
[1766211336206,0.9555,2987.6,2987.2,0.5427]
[1766211344614,0.002,2987.6,2987.2,0.5427]
[1766211345004,0.002,2987.6,2987.2,1.0814]
[1766211347113,0.9555,2987.6,2987.2,0.5427]
[1766211347914,1.5228,2987.6,2987.2,0.5427]
[1766211351812,1.5228,2987.6,2987.1,0.001]
[1766211352320,1.5228,2987.6,2987.1,0.5912]
[1766211353619,1.77568447,2987.6,2987.1,0.001]
[1766211353817,1.77568447,2987.6,2987.0,0.568]
[1766211353818,7.75177163,2987.3,2987.0,0.568]
[1766211354132,0.9535,2987.2,2987.0,0.001]
[1766211358438,1.5208,2987.1,2986.7,0.001]
[1766211358599,0.9535,2987.0,2986.7,0.001]
[1766211358793,0.9535,2987.2,2986.7,0.5912]
[1766211360624,0.9535,2987.2,2987.0,0.001]
[1766211360828,1.1646,2987.2,2987.0,0.001]
[1766211363428,0.9535,2987.1,2986.7,0.001]
[1766211363932,1.5208,2987.1,2986.7,0.001]
[1766211364161,2.52708762,2987.1,2986.7,0.001]
[1766211364303,3.51935355,2987.1,2986.7,0.001]
[1766211372022,2.51306593,2987.1,2986.7,0.001]
[1766211372224,3.51935355,2987.1,2986.7,0.001]
[1766211373439,2.52708762,2987.1,2986.7,0.001]
[1766211373751,1.57358762,2987.1,2986.7,0.001]
[1766211373936,2.53518762,2987.1,2986.7,0.001]
[1766211376243,2.53718762,2987.1,2986.7,0.001]
[1766211376739,1.5309,2987.1,2986.7,0.001]
[1766211380048,0.002,2987.1,2986.7,0.001]
[1766211380344,0.002,2987.1,2986.8,0.5697]
[1766211385150,0.002,2987.1,2986.8,0.5707]
[1766211391551,0.5697,2987.3,2986.9,0.5166]
[1766211391757,0.44,2987.5,2987.1,0.4984]
[1766211392056,0.44,2987.5,2987.1,1.015]
[1766211392655,0.44,2987.5,2987.1,0.4984]
[1766211392863,0.44,2987.5,2986.9,1.5847]
[1766211392864,1.9775,2987.5,2986.9,1.5847]
[1766211393157,1.9775,2987.5,2987.0,0.4993]
[1766211393764,0.002,2987.1,2987.0,0.4993]
[1766211396029,0.002,2987.1,2987.0,1.0142]
[1766211396940,0.44,2987.5,2987.1,0.4991]
[1766211397141,0.44,2987.5,2987.1,1.0137]
[1766211397840,0.002,2987.6,2987.1,1.0137]
[1766211399357,0.002,2987.6,2987.2,1.0144]
[1766211400734,1.4787,2987.5,2987.0,0.5134]
[1766211400934,1.4787,2987.5,2987.0,1.51946489]
[1766211401243,1.4787,2987.5,2987.1,0.20203649]
[1766211401446,1.4787,2987.5,2986.8,0.5144]
[1766211401677,0.5466,2987.4,2986.9,0.44]
[1766211401836,0.002,2987.6,2986.9,1.00606489]
[1766211402160,1.4787,2987.3,2986.8,0.441]
[1766211402355,1.4787,2987.3,2986.8,1.44706489]
[1766211402731,1.4787,2987.3,2986.8,1.94876489]
[1766211405770,0.002,2987.6,2986.9,0.5119]
[1766211405973,0.002,2987.6,2986.8,1.44706489]
[1766211405974,1.4787,2987.5,2986.8,1.44706489]
[1766211406135,0.002,2987.6,2986.8,0.441]
[1766211406340,1.4787,2987.3,2986.9,1.00615599]
[1766211406691,0.002,2987.6,2986.9,1.00615599]
[1766211406837,1.4787,2987.5,2986.9,1.00615599]
[1766211407472,0.48151015,2987.6,2986.9,1.00615599]
[1766211407675,0.002,2987.6,2986.9,1.00615599]
[1766211407874,1.4787,2987.5,2986.9,1.00615599]
[1766211408062,1.4787,2987.4,2986.9,1.00615599]
[1766211410771,1.4787,2987.4,2986.9,1.00715599]
[1766211413370,0.002,2988.0,2986.9,1.00715599]
[1766211413371,0.002,2988.4,2987.2,7.18460013]
[1766211413674,0.9321,2988.0,2987.4,0.504]
[1766211413874,0.9321,2987.9,2987.5,0.44]
[1766211414174,7.18660013,2988.4,2987.3,0.44]
[1766211414175,0.9321,2988.2,2987.3,0.44]
[1766211414349,0.9321,2988.2,2987.6,0.9321]
[1766211415382,0.9321,2988.2,2987.3,0.44]
[1766211415578,0.9321,2988.0,2987.3,0.9687]
[1766211415780,0.9321,2988.0,2987.4,0.9321]
[1766211416077,0.5466,2987.9,2987.4,0.9321]
[1766211416263,1.4787,2987.8,2987.4,0.9321]
[1766211419280,1.4807,2987.8,2987.4,0.9321]
[1766211422185,0.9341,2988.3,2987.5,0.5287]
[1766211422385,1.4807,2988.3,2987.5,0.5287]
[1766211422597,0.9321,2988.2,2987.5,0.5287]
[1766211422888,0.9321,2988.2,2987.6,1.00589285]
[1766211423083,0.9321,2988.2,2987.7,0.5287]
[1766211423966,0.5466,2988.2,2987.7,1.4608]
[1766211424160,1.4787,2988.1,2987.7,1.4608]
[1766211426389,1.4787,2988.1,2987.7,0.9321]
[1766211426596,1.0068,2988.0,2987.7,0.9321]
[1766211431070,1.6012,2988.0,2987.7,0.9321]
[1766211434598,1.6012,2988.0,2987.5,0.5785]
[1766211434796,1.6012,2988.0,2987.5,1.0185]
[1766211434998,1.0068,2987.9,2987.5,0.5785]
[1766211435201,1.0068,2987.8,2987.5,1.00592658]
[1766211435501,1.0068,2987.8,2987.3,1.0185]
[1766211435902,1.0068,2987.8,2987.4,1.00597043]
[1766211441009,1.6012,2987.8,2987.4,1.00597043]
[1766211445929,1.6012,2987.8,2987.4,1.58447043]
[1766211447489,1.6012,2987.8,2987.4,1.58547043]
[1766211451105,1.0038,2987.7,2987.4,0.001]
[1766211451814,0.002,2988.0,2987.4,0.001]
[1766211452015,1.0038,2987.7,2987.4,0.001]
[1766211461137,1.6015,2987.7,2987.4,0.001]
[1766211461338,0.9775,2987.6,2987.4,0.001]
[1766211462541,0.5977,2987.7,2987.4,0.001]
[1766211462938,1.5752,2987.7,2987.4,0.001]
[1766211468651,0.9775,2987.7,2987.4,0.001]
[1766211471614,0.5997,2987.8,2987.4,0.001]
[1766211471814,0.5997,2987.8,2987.4,0.5468]
[1766211472515,1.5772,2987.8,2987.4,0.5468]
[1766211474652,0.002,2987.8,2987.2,1.00600754]
[1766211474954,0.9775,2987.7,2987.2,1.00600754]
[1766211475156,0.9775,2987.5,2987.0,0.9858]
[1766211476351,0.9775,2987.5,2987.0,0.44]
[1766211476528,0.002,2987.8,2987.1,0.5458]
[1766211476720,0.9775,2987.7,2987.1,0.5458]
[1766211482657,0.002,2987.8,2987.1,0.5458]
[1766211483149,0.9795,2987.8,2987.1,0.5458]
[1766211483926,1.5772,2987.8,2987.1,0.5458]
[1766211484127,1.5752,2987.7,2987.1,0.5458]
[1766211484346,0.5977,2987.7,2987.1,0.5458]
[1766211484524,1.5319,2987.7,2987.1,0.5458]
[1766211487554,1.5319,2987.7,2987.1,3.89352816]
[1766211487850,0.002,2987.8,2987.3,0.5581]
[1766211490457,0.002,2987.8,2987.3,0.5591]
[1766211490759,0.002,2988.0,2987.3,3.34846859]
[1766211491055,0.002,2988.0,2987.4,0.5581]
[1766211498062,0.9362,2988.0,2987.4,0.5581]
[1766211498644,0.002,2988.4,2988.0,7.62642947]
[1766211498849,0.002,2988.4,2988.0,0.8836]
[1766211499367,0.002,2988.4,2988.0,0.44]
[1766211499664,0.002,2988.4,2988.1,0.4436]
[1766211504670,0.002,2988.5,2988.1,0.4436]
[1766211506571,0.002,2988.4,2988.1,0.4436]
[1766211513981,0.002,2988.6,2988.2,0.4437]
[1766211515178,0.002,2988.4,2988.2,0.4437]
[1766211520178,0.002,2988.6,2988.2,0.4437]
[1766211539611,0.9817,2988.6,2988.3,0.44]
[1766211539792,1.5756,2988.6,2988.3,0.44]
[1766211541718,1.5756,2988.6,2988.1,0.4448]
[1766211541883,1.5756,2988.6,2988.2,0.44]
[1766211542727,0.9797,2988.5,2988.2,0.44]
[1766211542890,1.5736,2988.5,2988.1,0.001]
[1766211543205,1.5736,2988.5,2988.1,0.441]
[1766211543206,0.9797,2988.4,2988.1,0.441]
[1766211543809,0.9817,2988.6,2988.1,1.0149]
[1766211544014,0.002,2988.6,2988.2,0.5739]
[1766211546607,0.9271,2988.6,2988.2,0.5739]
[1766211548107,0.9271,2988.6,2988.1,0.001]
[1766211548108,0.9251,2988.4,2988.1,0.001]
[1766211550592,1.4796,2988.4,2988.1,0.001]
[1766211550809,1.4796,2988.3,2988.1,0.001]
[1766211551096,0.9251,2988.3,2988.1,0.001]
[1766211551416,0.5545,2988.5,2988.1,0.001]
[1766211551621,0.9251,2988.4,2988.1,0.001]
[1766211556321,1.4796,2988.4,2988.1,0.001]
[1766211556517,0.9251,2988.3,2988.1,0.001]
[1766211560234,0.002,2988.6,2988.2,0.5691]
[1766211562232,1.4816,2988.6,2988.2,0.5691]
[1766211562524,1.4816,2988.6,2988.1,0.001]
[1766211562729,1.4816,2988.6,2988.1,0.5701]
[1766211569136,0.002,2989.0,2988.3,0.5716]
[1766211569430,0.5912,2989.0,2988.4,1.0116]
[1766211569615,0.9374,2988.9,2988.4,1.0116]
[1766211570438,0.9374,2988.9,2988.5,0.44]
[1766211571635,0.9374,2988.9,2988.5,1.0116]
[1766211572833,0.9394,2988.9,2988.5,1.0116]
[1766211573517,0.002,2988.9,2988.5,1.0116]
[1766211576437,0.9696,2988.9,2988.5,1.0116]
[1766211578641,0.002,2988.9,2988.5,1.0116]
[1766211580336,0.9696,2988.9,2988.5,0.44]
[1766211580646,0.9696,2988.9,2988.5,0.441]
[1766211580830,0.9696,2988.9,2988.5,0.001]
[1766211581038,0.9676,2988.8,2988.6,0.44]
[1766211586352,0.002,2988.9,2988.6,0.44]
[1766211587054,0.002,2988.9,2988.5,0.001]
[1766211587241,0.5822,2988.8,2988.3,0.44]
[1766211587446,0.9676,2988.7,2988.2,0.44]
[1766211588441,0.9676,2988.7,2988.5,0.001]
[1766211589854,1.5498,2988.6,2988.5,0.001]
[1766211596468,1.5498,2988.6,2988.1,0.441]
[1766211596769,1.5498,2988.5,2988.1,0.441]
[1766211600663,1.5498,2988.5,2988.1,0.9858]
[1766211601171,0.9676,2988.5,2988.1,0.9858]
[1766211612680,0.9696,2988.5,2988.1,0.9858]
[1766211616855,0.002,2988.5,2988.2,7.77210679]
[1766211617657,0.9233,2988.5,2988.2,0.44]
[1766211627791,0.002,2988.5,2988.2,0.44]
[1766211628095,0.002,2988.5,2988.2,1.0168]
[1766211633795,0.002,2988.7,2988.2,0.44]
[1766211633994,0.002,2988.7,2988.3,0.5768]
[1766211654510,0.002,2988.7,2988.3,0.5778]
[1766211657888,0.002,2988.9,2988.4,0.5935]
[1766211658410,0.002,2988.9,2988.4,1.59913996]
[1766211658707,0.9626,2988.9,2988.4,1.59913996]
[1766211658909,0.9626,2988.9,2988.4,1.00563996]
[1766211659211,0.9626,2988.9,2988.5,0.5935]
[1766211669602,0.002,2988.9,2988.5,0.5935]
[1766211679531,0.002,2988.9,2988.5,0.5945]
[1766211679903,0.002,2988.9,2988.5,3.94065805]
[1766211680114,0.002,2988.9,2988.6,0.5613]
[1766211680914,0.002,2988.9,2988.7,0.5975]
[1766211688126,1.4293,2989.2,2988.6,1.00556243]
[1766211688426,1.4293,2989.2,2988.7,0.5975]
[1766211689134,0.442,2989.2,2988.7,0.5975]
[1766211689512,1.3563,2989.2,2988.8,1.00548829]
[1766211690036,1.3563,2989.2,2988.8,1.60298829]
[1766211690237,0.9163,2989.2,2988.8,1.60298829]
[1766211691740,0.9163,2989.2,2988.8,1.00548829]
[1766211691936,1.4951,2989.2,2988.6,1.0375]
[1766211692130,1.4951,2989.2,2988.6,0.44]
[1766211692330,1.4951,2989.2,2988.7,1.5138]
[1766211699343,1.4951,2989.2,2988.7,0.9163]
[1766211699546,1.4951,2989.2,2988.8,0.5517]
[1766211705853,0.9163,2989.2,2988.8,0.5517]
[1766211706222,0.002,2989.2,2988.8,0.5517]
[1766211706750,1.0223,2989.5,2988.8,0.5517]
[1766211707534,0.44,2989.5,2988.9,0.5517]
[1766211709325,0.44,2989.5,2989.0,0.5517]
[1766211709553,0.002,2989.2,2989.0,0.5517]
[1766211713460,0.002,2989.6,2989.0,0.44]
[1766211713659,0.002,2989.6,2989.1,0.5517]
[1766211714449,0.002,2989.6,2989.1,0.68575432]
[1766211717541,0.002,2989.2,2989.1,0.68575432]
[1766211718064,0.002,2989.6,2989.1,7.30801275]
[1766211718261,0.002,2989.6,2989.2,0.5517]
[1766211719569,0.002,2989.6,2989.3,0.9603]
[1766211722068,0.9583,2989.5,2989.3,0.9603]
[1766211722365,0.9583,2989.2,2988.9,0.44]
[1766211722571,0.9583,2989.1,2988.6,0.5527]
[1766211722864,0.9583,2989.0,2988.6,0.001]
[1766211723067,0.9583,2988.9,2988.6,0.001]
[1766211723266,0.9583,2988.9,2988.6,0.5527]
[1766211723763,0.5517,2988.8,2988.6,0.5527]
[1766211725048,0.9583,2989.1,2988.7,7.17395843]
[1766211725571,0.9583,2989.0,2988.6,0.5527]
[1766211726075,1.9166,2989.1,2988.6,0.5527]
[1766211726440,0.3708,2989.1,2988.6,0.001]
[1766211726641,0.002,2989.6,2988.8,0.5841]
[1766211726642,0.9411,2989.6,2988.8,0.5841]
[1766211726842,0.9391,2989.3,2988.8,0.5841]
[1766211727257,1.12692,2989.3,2988.8,0.5841]
[1766211729065,2.06602,2989.3,2988.8,0.5841]
[1766211731264,1.12692,2989.3,2988.8,0.5841]
[1766211731457,0.9391,2989.3,2988.8,0.5841]
[1766211734484,0.9411,2989.3,2988.8,0.5841]
[1766211735463,1.8802,2989.3,2988.8,0.5841]
[1766211740280,0.9391,2989.2,2988.8,0.5841]
[1766211740483,0.9391,2989.1,2988.7,1.3791]
[1766211741084,0.9391,2989.0,2988.7,1.3791]
[1766211750020,0.9231,2988.9,2988.7,1.3791]
[1766211754705,0.9411,2989.3,2988.7,1.3791]
[1766211754908,0.5695,2989.2,2988.7,1.3791]
[1766211755108,0.9884,2989.1,2988.7,1.3791]
[1766211755406,0.9884,2989.1,2988.7,1.9743]
[1766211759124,1.5579,2989.1,2988.7,1.3791]
[1766211761710,1.5579,2989.1,2988.7,1.9743]
[1766211762128,1.5599,2989.1,2988.7,1.9743]
[1766211762602,0.9904,2989.1,2988.7,1.9743]
[1766211767703,0.9904,2989.1,2988.8,0.5952]
[1766211770060,0.002,2989.1,2988.8,0.5952]
[1766211777592,0.002,2989.1,2988.9,1.00554558]
[1766211777891,0.002,2989.1,2988.9,1.60074558]
[1766211779487,0.002,2989.1,2988.9,0.5952]
[1766211782285,0.002,2989.3,2988.9,0.5952]
[1766211782661,0.002,2989.3,2988.9,1.5856]
[1766211782866,0.002,2989.3,2989.0,0.5952]
[1766211793215,0.002,2989.6,2989.0,0.5952]
[1766211793793,0.9816,2989.6,2989.0,0.5952]
[1766211795123,1.5949,2989.6,2989.0,0.5952]
[1766211798125,0.6153,2989.6,2989.0,0.5952]
[1766211798324,0.9796,2989.5,2989.0,0.5952]
[1766211799823,0.9796,2989.5,2989.0,1.5748]
[1766211806136,0.9796,2989.5,2989.0,0.9796]
[1766211806337,0.9796,2989.5,2989.1,0.5792]
[1766211806940,0.9816,2989.5,2989.1,0.5792]
[1766211807140,0.9816,2989.5,2989.1,1.5588]
[1766211816039,0.9816,2989.5,2989.1,1.9988]
[1766211818576,0.002,2989.5,2989.2,0.5705]
[1766211827491,0.002,2989.8,2989.2,7.17328468]
[1766211827704,0.002,2989.9,2989.5,0.5705]
[1766211833794,0.002,2989.9,2989.3,0.9155]
[1766211834095,0.9135,2989.6,2989.3,0.9155]
[1766211834291,0.9135,2989.5,2989.3,0.9155]
[1766211836197,0.9135,2989.7,2989.3,0.9155]
[1766211837296,0.5707,2989.7,2989.3,0.9155]
[1766211837497,0.9135,2989.6,2989.3,0.9155]
[1766211837880,1.4842,2989.6,2989.3,0.9155]
[1766211840795,1.4842,2989.6,2989.2,1.0105]
[1766211840971,1.4842,2989.6,2989.2,2.01589056]
[1766211842671,0.9135,2989.6,2989.2,2.01589056]
[1766211853484,1.4783,2989.6,2989.2,2.01589056]
[1766211859291,0.5648,2989.7,2989.2,1.44539056]
[1766211859511,0.5648,2989.5,2989.2,0.44]
[1766211859732,0.9591,2989.4,2989.2,0.44]
[1766211861206,0.5648,2989.1,2989.0,0.00042089]
[1766211861404,1.5239,2989.1,2989.0,0.00042089]
[1766211889560,1.5259,2989.1,2989.0,0.00042089]
[1766211902056,1.65997768,2989.1,2989.0,0.00042089]
[1766211904175,0.9999,2988.8,2988.3,0.001]
[1766211904471,0.9916,2988.4,2988.0,3.92278138]
[1766211904638,0.9916,2988.4,2988.1,0.45554814]
[1766211905074,1.99729727,2988.6,2988.1,1.07944814]
[1766211906453,1.00569727,2988.6,2988.2,0.3942]
[1766211906770,1.00569727,2988.6,2988.3,0.3942]
[1766211906973,1.00569727,2988.6,2988.3,1.0181]
[1766211909067,1.00569727,2988.6,2988.3,0.6239]
[1766211909244,0.9916,2988.5,2988.1,0.001]
[1766211909447,0.9916,2988.3,2988.1,0.441]
[1766211911069,0.9916,2988.3,2988.1,0.001]
[1766211911244,0.9916,2988.3,2988.0,0.001]
[1766211911445,1.2255,2988.4,2988.0,0.001]
[1766211911672,1.5922,2988.4,2988.0,0.001]
[1766211914072,1.5942,2988.4,2988.0,0.001]
[1766211923674,0.002,2988.4,2988.0,0.001]
[1766211923880,0.002,2988.4,2988.1,0.5869]
[1766211924782,0.002,2988.4,2988.0,0.001]
[1766211925581,1.6146,2988.4,2988.0,0.001]
[1766211927081,0.992,2988.3,2988.0,0.001]
[1766211940196,0.994,2988.3,2988.0,0.001]
[1766211970426,0.994,2988.3,2988.0,0.441]
[1766211971726,1.6094,2988.2,2988.0,0.441]
[1766211974565,0.9686,2988.2,2988.0,0.441]
[1766211978283,0.002,2988.3,2988.0,0.441]
[1766211980941,0.9493,2988.3,2988.0,0.441]
[1766211988054,1.5895,2988.3,2988.0,0.441]
[1766211996296,0.002,2988.3,2988.1,0.6239]
[1766211997681,0.002,2988.3,2988.0,0.441]
[1766212005419,0.002,2988.3,2988.0,0.001]
[1766212005599,0.002,2988.3,2988.0,0.441]
[1766212009621,1.5783,2988.3,2988.0,0.441]
[1766212010913,0.002,2988.3,2988.0,0.441]
[1766212011497,0.9617,2988.3,2988.0,0.441]
[1766212014520,1.5783,2988.3,2988.0,0.441]
[1766212017330,1.5783,2988.3,2988.0,0.001]
[1766212021341,0.9617,2988.3,2988.0,0.001]
[1766212028342,1.00580854,2988.5,2988.1,0.3941]
[1766212028522,1.00580854,2988.5,2988.2,0.5945]
[1766212028910,1.4944,2988.7,2988.2,0.5945]
[1766212029132,2.50015459,2988.7,2988.2,0.5945]
[1766212034658,2.50215459,2988.7,2988.2,0.5945]
[1766212034858,1.91255459,2988.7,2988.2,0.9886]
[1766212038569,2.50215459,2988.7,2988.2,0.9886]
[1766212039957,2.50215459,2988.7,2988.2,0.5945]
[1766212042961,1.4964,2988.7,2988.2,0.5945]
[1766212043165,0.5945,2988.6,2988.2,0.5945]
[1766212043563,2.1687,2988.6,2988.2,0.5945]
[1766212047067,0.5945,2988.6,2988.0,1.00675459]
[1766212047243,0.981,2988.4,2988.0,0.001]
[1766212047444,1.5742,2988.4,2988.0,0.441]
[1766212047647,1.5742,2988.4,2988.0,1.00675459]
[1766212047851,0.5932,2988.4,2988.0,0.001]
[1766212048066,1.5742,2988.3,2988.0,0.001]
[1766212048268,0.981,2988.1,2987.9,1.44680517]
[1766212048473,1.5742,2988.1,2987.9,0.441]
[1766212048654,1.5742,2988.0,2987.9,0.441]
[1766212051373,0.981,2988.0,2987.9,0.441]